fUSD/lending_fUSD_20240614
["ID","MTS","AMOUNT","RATE_DAILY","PERIOD"]
[329491121,1718391102502,-500.0,0.00023835,3]
[329491122,1718391102517,-753.41,0.00023835,3]
[329491123,1718391102550,-500.0,0.00023835,3]
[329491124,1718391102566,-500.0,0.00023835,3]
[329491125,1718391102602,-1970.6,0.00023835,3]
[329491126,1718391102627,-1875.8,0.00023835,3]
[329491127,1718391102643,-1135.39,0.00023835,3]
[329491128,1718391102661,-500.0,0.00023835,3]
[329491129,1718391102679,-500.0,0.00023835,3]
[329491130,1718391102734,-488.32648595,0.00023835,3]
[329491131,1718391102777,-1001.18,0.00023835,3]
[329491132,1718391102794,-1380.26,0.00023835,3]
[329491133,1718391102808,-3380.84,0.00023835,3]
[329491134,1718391102839,-592.03,0.00023835,3]
[329491135,1718391102871,-500.0,0.00023835,3]
[329491136,1718391102900,-574.14,0.00023835,3]
[329491137,1718391102915,-7850.36,0.00023835,3]
[329491138,1718391102944,-1263.36,0.00023835,3]
[329491139,1718391102957,-824.94,0.00023835,3]
[329491140,1718391102992,-500.0,0.00023835,3]
[329491141,1718391103016,-500.0,0.00023835,3]
[329491142,1718391103050,-1398.36,0.00023835,3]
[329491143,1718391103072,-630.11,0.00023835,3]
[329491144,1718391103089,-5934.47,0.00023835,3]
[329491145,1718391103156,-500.0,0.00023835,3]
[329491146,1718391103192,-3522.98,0.00023835,3]
[329491147,1718391103231,-2985.25,0.00023835,3]
[329491148,1718391103266,-550.9,0.00023835,3]
[329491149,1718391103285,-500.0,0.00023835,3]
[329491150,1718391103300,-880.09,0.00023835,3]
[329491151,1718391103341,-502.94,0.00023835,3]
[329491152,1718391103446,-704.19,0.00023835,3]
[329491153,1718391103462,-500.0,0.00023835,3]
[329491154,1718391103480,-3676.36,0.00023835,3]
[329491155,1718391103496,-151.0,0.00023835,7]
[329491156,1718391103520,-1444.38,0.00023835,3]
[329491157,1718391103533,-7511.3620711,0.00023835,3]
[329491158,1718391103921,-22224.2479289,0.00023835,3]
[329491159,1718391103933,-2978.28,0.00023835,3]
[329491160,1718391103957,-506.37,0.00023835,3]
[329491161,1718391103991,-500.0,0.00023835,3]
[329491162,1718391104020,-500.0,0.00023835,3]
[329491163,1718391104059,-500.0,0.00023835,3]
[329491164,1718391104086,-677.26,0.00023835,3]
[329491165,1718391104100,-500.0,0.00023835,3]
[329491166,1718391104116,-1055.02,0.00023835,3]
[329491167,1718391104132,-10598.1,0.00023835,3]
[329491168,1718391104144,-2806.41,0.00023835,3]
[329491169,1718391104156,-500.0,0.00023835,3]
[329491170,1718391104169,-3662.28,0.00023835,3]
[329491171,1718391104201,-537.48,0.00023835,3]
[329491172,1718391104215,-1684.13,0.00023835,3]
[329491173,1718391104233,-2671.11,0.00023835,3]
[329491174,1718391104274,-4218.2,0.00023835,3]
[329491175,1718391104317,-675.48774785,0.00023835,3]
[329491176,1718391104332,-281.94528021,0.00023835,3]
[329491177,1718391104410,-984.60812738,0.000217,2]
[329491178,1718391104430,-500.0,0.00022465,3]
[329491179,1718391104465,-2240.82,0.00022739,3]
[329491180,1718391104484,-2240.82,0.00023013,3]
[329491181,1718391104501,-710.45697194,0.00023835,3]
[329491182,1718391104515,-784.17,0.00023835,3]
[329491183,1718391104527,-1148.99,0.00023835,3]
[329491184,1718391104556,-758.7,0.00023835,3]
[329491185,1718391104567,-733.84,0.00023835,3]
[329491186,1718391104579,-1290.88,0.00023835,3]
[329491187,1718391104599,-1732.28,0.00023835,3]
[329491188,1718391104609,-514.76,0.00023835,3]
[329491189,1718391104630,-3086.92772397,0.00023835,3]
[329491190,1718391104644,-362.72227603,0.00023835,3]
[329491191,1718391104656,-575.16655258,0.00023835,3]
[329491192,1718391104677,-422.41344742,0.00023835,3]
[329491193,1718391104690,-500.0,0.00023835,3]
[329491194,1718391104704,-500.0,0.00023835,3]
[329491195,1718391104722,-500.0,0.00023835,3]
[329491196,1718391104739,-995.86211834,0.00023835,3]
[329491197,1718391104760,-734.31788166,0.00023835,3]
[329491198,1718391104777,-2247.87,0.00023835,3]
[329491199,1718391104792,-500.0,0.00023835,3]
[329491200,1718391104804,-355.09069308,0.00023835,3]
[329491201,1718391104819,-500.0,0.00023835,3]
[329491202,1718391104834,-1843.05,0.00023835,3]
[329491203,1718391104847,-500.0,0.00023835,3]
[329491204,1718391104858,-1435.95,0.00023835,3]
[329491205,1718391104882,-500.0,0.00023835,3]
[329491206,1718391104924,-23041.98,0.00023835,3]
[329491207,1718391104936,-500.0,0.00023835,3]
[329491208,1718391104948,-775.47,0.00023835,3]
[329491209,1718391104982,-1080.33,0.00023835,3]
[329491210,1718391105028,-2112.68,0.00023835,3]
[329491211,1718391105069,-877.99,0.00023835,3]
[329491212,1718391105099,-395.25,0.00023835,3]
[329491213,1718391105112,-500.0,0.00023835,3]
[329491214,1718391105129,-9836.95,0.00023835,3]
[329491215,1718391105141,-943.94,0.00023835,3]
[329491216,1718391105154,-1030.33,0.00023835,3]
[329491217,1718391105178,-500.0,0.00023835,3]
[329491218,1718391105193,-1458.53,0.00023835,3]
[329491219,1718391105205,-896.65,0.00023835,3]
[329491220,1718391105233,-962.9,0.00023835,3]
[329491221,1718391105260,-707.69,0.00023835,3]
[329491222,1718391105274,-631.9,0.00023835,3]
[329491223,1718391105287,-776.36,0.00023835,3]
[329491224,1718391105299,-8903.73,0.00023835,3]
[329491225,1718391105327,-500.0,0.00023835,3]
[329491226,1718391105339,-500.0,0.00023835,3]
[329491227,1718391105359,-1481.84,0.00023835,3]
[329491228,1718391105371,-1510.07,0.00023835,3]
[329491229,1718391105391,-500.0,0.00023835,3]
[329491230,1718391105407,-500.0,0.00023835,3]
[329491231,1718391105420,-2835.88,0.00023835,3]
[329491232,1718391105434,-1196.91,0.00023835,3]
[329491233,1718391105449,-3592.35,0.00023835,3]
[329491234,1718391105461,-1753.97,0.00023835,3]
[329491235,1718391105485,-6318.35,0.00023835,3]
[329491236,1718391105499,-2118.45,0.00023835,3]
[329491237,1718391105514,-756.69,0.00023835,3]
[329491238,1718391105526,-10351.74,0.00023835,3]
[329491239,1718391105540,-1145.68,0.00023835,3]
[329491240,1718391105564,-778.85,0.00023835,3]
[329491241,1718391105576,-4520.85,0.00023835,3]
[329491242,1718391105590,-6900.79,0.00023835,3]
[329491243,1718391105602,-3747.1,0.00023835,3]
[329491244,1718391105623,-500.0,0.00023835,3]
[329491245,1718391105635,-821.26,0.00023835,3]
[329491246,1718391105650,-1394.79,0.00023835,3]
[329491247,1718391105663,-1088.84,0.00023835,3]
[329491248,1718391105680,-500.0,0.00023835,3]
[329491250,1718391105694,-4458.97,0.00023835,3]
[329491251,1718391105722,-1772.91,0.00023835,3]
[329491252,1718391105764,-726.01,0.00023835,3]
[329491253,1718391105810,-1108.5,0.00023835,3]
[329491254,1718391105832,-150.0,0.00023849,2]
[329491255,1718391105878,-150.0,0.00023853,7]
[329491256,1718391105894,-1774.9068476,0.00023854,2]
[329491257,1718391105920,-530.23131,0.00023854,2]
[329491258,1718391105946,-52149.6697887,0.00023854,2]
[329491259,1718391105978,-2210.32035,0.0002386,2]
[329491260,1718391106000,-156973.95757757,0.00023861,2]
[329491261,1718391106017,-155.0,0.00023861,2]
[329491262,1718391106056,-151.0,0.00023861,7]
[329491263,1718391106069,-151.0,0.00023861,7]
[329491264,1718391106081,-306.79921273,0.00023863,2]
[329491265,1718391106096,-224325.88303005,0.00023864,2]
[329491266,1718391106124,-151.0,0.00023864,7]
[329491267,1718391106152,-151.0,0.00023864,7]
[329491268,1718391106164,-162533.64546537,0.00023864,2]
[329491269,1718391108076,-418.57870781,0.00013947,2]
[329491270,1718391108092,-254.30894129,0.00014998,2]
[329491271,1718391108103,-536.02907718,0.00014998,2]
[329491272,1718391108113,-1227.69334925,0.00021798,2]
[329491273,1718391108124,-9704.02941615,0.00021916,2]
[329491274,1718391108137,-348.04079335,0.00021916,2]
[329491275,1718391108153,-647.5444773,0.00021916,2]
[329491276,1718391108167,-866.09290291,0.00021916,2]
[329491277,1718391108183,-412.1753019,0.00021916,2]
[329491278,1718391108197,-296.13443335,0.00021916,2]
[329491279,1718391108275,-336.74865539,0.00021915,2]
[329491280,1718391108287,-20.94617008,0.00021916,2]
[329491281,1718391108299,-600.42032532,0.00021916,2]
[329491282,1718391108312,-1098.83817205,0.00021916,2]
[329491283,1718391108324,-605.70812265,0.00021916,2]
[329491284,1718391108337,-2382.36500378,0.00021916,2]
[329491285,1718391108351,-313.46111359,0.00021916,2]
[329491286,1718391108366,-452.50101143,0.00021916,2]
[329491287,1718391109457,-413.2045561,0.00021914,2]
[329491288,1718391109474,-4954.39432268,0.00021916,2]
[329491289,1718391109488,-500.0,0.00021917,2]
[329491290,1718391109501,-500.0,0.00021917,2]
[329491291,1718391109516,-917.88,0.00021917,2]
[329491292,1718391109531,-630.52112129,0.00021917,2]
[329491293,1718391109565,-657.73887871,0.00021917,2]
[329491294,1718391109584,-30.4300211,0.00021917,2]
[329491295,1718391109605,-1973.0199789,0.00021917,2]
[329491296,1718391109617,-2472.21743049,0.00021918,2]
[329491297,1718391109637,-1486.43256951,0.00021918,2]
[329491298,1718391109668,-499.99,0.00021918,2]
[329491299,1718391109694,-500.0,0.00022191,3]
[329491300,1718391109713,-917.88,0.00022191,3]
[329491301,1718391109725,-1288.26,0.00022191,3]
[329491302,1718391109736,-2003.45,0.00022191,3]
[329491303,1718391109748,-500.0,0.00022465,3]
[329491304,1718391109759,-917.88,0.00022465,3]
[329491305,1718391109769,-1288.26,0.00022465,3]
[329491306,1718391109779,-2003.45,0.00022465,3]
[329491307,1718391109794,-500.0,0.00022739,3]
[329491308,1718391109827,-500.0,0.00022739,3]
[329491309,1718391109852,-917.88,0.00022739,3]
[329491310,1718391109868,-1288.26,0.00022739,3]
[329491311,1718391109897,-2003.45,0.00022739,3]
[329491312,1718391109931,-500.0,0.00023013,3]
[329491313,1718391109973,-500.0,0.00023013,3]
[329491314,1718391110024,-917.88,0.00023013,3]
[329491315,1718391110044,-1288.26,0.00023013,3]
[329491316,1718391110055,-2003.45,0.00023013,3]
[329491317,1718391110075,-2240.82,0.00023287,3]
[329491318,1718391110094,-500.0,0.00023287,3]
[329491319,1718391110107,-500.0,0.00023287,3]
[329491320,1718391110120,-917.88,0.00023287,3]
[329491321,1718391110130,-1288.26,0.00023287,3]
[329491322,1718391110157,-2240.82,0.00023561,3]
[329491323,1718391110181,-500.0,0.00023561,3]
[329491324,1718391110193,-484.02450314,0.00023561,3]
[329491325,1718391110204,-917.88,0.00023561,3]
[329491326,1718391110216,-1288.26,0.00023561,3]
[329491327,1718391110245,-984.60812736,0.00023814,2]
[329491328,1718391110257,-2240.82,0.00023835,3]
[329491329,1718391110269,-500.0,0.00023835,3]
[329491330,1718391110280,-917.88,0.00023835,3]
[329491331,1718391110304,-1288.26,0.00023835,3]
[329491332,1718391110316,-30953.70479999,0.00023864,2]
[329491333,1718391110346,-668.90836217,0.00023864,2]
[329491334,1718391110368,-286.654,0.00023864,2]
[329491335,1718391110381,-3468.12070833,0.00023864,2]
[329491336,1718391110394,-772.1299993,0.00023864,2]
[329491337,1718391110407,-716.30002,0.00023864,2]
[329491338,1718391110420,-840.5182671,0.00023864,2]
[329491339,1718391110433,-7399.99999996,0.00023864,2]
[329491340,1718391110515,-450.0,0.00023287,3]
[329491341,1718391110532,-1029.08771505,0.00023287,3]
[329491342,1718391110548,-362.74238,0.00023287,3]
[329491343,1718391110693,-161.61990495,0.00023287,3]
[329491344,1718391110709,-2003.45,0.00023561,3]
[329491345,1718391110726,-3468.16846366,0.00023864,2]
[329491346,1718391110762,-2340.0,0.00023864,2]
[329491347,1718391110777,-2093.79820878,0.00023864,2]
[329491348,1718391110790,-3819.43226245,0.00023864,2]
[329491349,1718391110823,-4964.50247294,0.00023864,2]
[329491350,1718391110841,-210.482296,0.00023868,2]
[329491351,1718391110865,-2351.166636,0.00023868,2]
[329491352,1718391110888,-155.0,0.00023868,2]
[329491353,1718391110907,-183.97791029,0.00023868,2]
[329491354,1718391110919,-155.0,0.00023868,2]
[329491355,1718391110949,-7069.1185602,0.0002387,2]
[329491356,1718391111012,-2003.45,0.00023835,3]
[329491357,1718391111029,-24023.35393444,0.0002387,2]
[329491358,1718391111063,-4239.96995737,0.0002387,2]
[329491359,1718391111077,-10770.61461163,0.0002387,2]
[329491360,1718391111097,-14462.37632953,0.0002387,2]
[329491361,1718391111110,-156.8,0.00023871,15]
[329491362,1718391111126,-306.79921273,0.0002388,2]
[329491363,1718391111141,-19749.82576082,0.0002388,2]
[329491364,1718391111158,-595.805002,0.0002388,2]
[329491365,1718391111172,-11922.69119834,0.0002388,2]
[329491366,1718391111186,-151.0,0.0002388,7]
[329491367,1718391111210,-151.0,0.0002388,7]
[329491368,1718391111222,-150.5,0.00023881,15]
[329491369,1718391111252,-306.79921273,0.00023882,2]
[329491370,1718391111265,-306.79921273,0.00023884,2]
[329491371,1718391111281,-18069.43319851,0.00023888,2]
[329491372,1718391112418,-935.11650011,0.00021917,2]
[329491374,1718391116363,232.7464851,0.00022189,60]
[329491382,1718391276749,400.0,0.00024684,120]
[329491383,1718391277001,400.0,0.00027153,120]
[329491499,1718391863903,160.0,0.00024939,120]
[329491500,1718391864569,160.0,0.00027206,120]
[329491505,1718392037167,-536.37434974,0.00013884,2]
[329491506,1718392037194,-155.0,0.00013884,2]
[329491507,1718392037225,-155.0,0.00013885,2]
[329491508,1718392037300,-818.46223283,0.00013886,2]
[329491509,1718392037346,-1272.62690907,0.00013886,2]
[329491526,1718392234909,-155.0,0.00013873,2]
[329491527,1718392234921,-155.0,0.00013874,2]
[329491528,1718392234934,-155.0,0.00013875,2]
[329491529,1718392234948,-201.80337802,0.00013876,2]
[329491530,1718392234964,-4447.99618339,0.00013876,2]
[329491531,1718392234975,-5586.98275761,0.00013878,2]
[329491532,1718392234987,-150.0,0.0001388,2]
[329491533,1718392234997,-948.37921266,0.00013886,2]
[329491534,1718392235012,-576.12188171,0.00013911,2]
[329491535,1718392235024,-155.0,0.00013946,2]
[329491536,1718392235039,-299.75188144,0.00013947,2]
[329491537,1718392235050,-210.0,0.00015268,2]
[329491538,1718392235071,-474.75,0.00016615,2]
[329491539,1718392235082,-335.75,0.00016712,2]
[329491540,1718392235112,-179.61,0.00016712,2]
[329491541,1718392235130,-200.03186853,0.00017257,2]
[329491542,1718392235140,-174.14229411,0.00017257,2]
[329491543,1718392235156,-499.99,0.00017257,2]
[329491544,1718392235174,-10109.53834162,0.00017259,2]
[329491545,1718392235197,-3949.36502979,0.00017259,2]
[329491546,1718392235214,-666.28,0.00017259,2]
[329491547,1718392235465,-10370.15998534,0.00017259,2]
[329491548,1718392235478,-160.0,0.00018137,2]
[329491549,1718392235489,-4334.9106619,0.00018362,2]
[329491559,1718392244212,-235.29888056,0.00013873,2]
[329491560,1718392244252,-3948.98946746,0.00018362,2]
[329491561,1718392244498,-1716.09987064,0.00018362,2]
[329491562,1718392244576,-199.13,0.00018591,2]
[329491563,1718392244589,-6290.14,0.0001871,2]
[329491564,1718392244624,-250.0,0.00018723,2]
[329491565,1718392244645,-250.0,0.00018725,2]
[329491566,1718392244659,-474.75,0.00018879,2]
[329491567,1718392244701,-682.0518607,0.00019451,2]
[329491568,1718392244712,-300.14317843,0.00019724,2]
[329491569,1718392244744,-400.0,0.00019747,2]
[329491570,1718392244768,-226.78109354,0.000201,2]
[329491571,1718392244801,-549.26741681,0.00020293,2]
[329491572,1718392244815,-450.73258319,0.00020293,2]
[329491573,1718392244839,-160.0,0.00020405,2]
[329491574,1718392244862,-171.58,0.00020548,2]
[329491575,1718392244873,-474.75,0.00021143,2]
[329491576,1718392244894,-199.13,0.00021331,2]
[329491577,1718392244917,-169.05615838,0.00021781,7]
[329491578,1718392244937,-17609.88845552,0.00021781,7]
[329491579,1718392244950,-308.14433475,0.00021807,2]
[329491580,1718392244964,-3292.03545262,0.00021807,2]
[329491581,1718392244976,-161.75997853,0.00021817,2]
[329491582,1718392244991,-7343.90698953,0.00021817,2]
[329491583,1718392245002,-175.92510569,0.00021817,2]
[329491584,1718392245014,-152.31490757,0.00021817,2]
[329491585,1718392245037,-800.0,0.0002189,2]
[329491586,1718392245076,-800.0,0.0002189,2]
[329491587,1718392245096,-800.0,0.0002189,2]
[329491588,1718392245121,-800.0,0.0002189,2]
[329491589,1718392245152,-800.0,0.0002189,2]
[329491590,1718392245169,-800.0,0.0002189,2]
[329491591,1718392245190,-800.0,0.0002189,2]
[329491592,1718392245206,-95.42477579,0.00021897,2]
[329491593,1718392245232,-2831.64,0.00021897,2]
[329491594,1718392245260,-254.28940012,0.00021897,2]
[329491595,1718392245280,-1047.95466654,0.00021897,2]
[329491596,1718392245342,-131534.22936855,0.00021897,2]
[329491597,1718392245387,-176.75608766,0.00021897,2]
[329491598,1718392245399,-500.0,0.000219,2]
[329491599,1718392245412,-235.77130805,0.00021904,2]
[329491600,1718392245428,-204.16627752,0.00021904,2]
[329491601,1718392245457,-254.20362507,0.00021904,2]
[329491602,1718392245484,-692.48600317,0.00021904,2]
[329491603,1718392245509,-2214.24493726,0.00021904,2]
[329491604,1718392245536,-1248.31846585,0.00021905,2]
[329491605,1718392245556,-22627.2563684,0.00021905,2]
[329491606,1718392245567,-271527.076421,0.00021906,2]
[329491607,1718392245588,-151.74,0.00021906,2]
[329491608,1718392245600,-151.74,0.00021906,2]
[329491609,1718392245616,-151.74,0.00021906,2]
[329491610,1718392245630,-151.74,0.00021906,2]
[329491611,1718392245643,-115136.5417541,0.00021907,2]
[329491612,1718392245660,-3018.77743687,0.00021907,2]
[329491613,1718392245683,-325.93999993,0.00021907,2]
[329491614,1718392245774,-39909.5353881,0.00021907,2]
[329491615,1718392245797,-151.74,0.00021907,2]
[329491616,1718392245831,-151.74,0.00021907,2]
[329491617,1718392245853,-151.74,0.00021907,2]
[329491618,1718392245866,-928.01705197,0.00021914,2]
[329491619,1718392245882,-2337.61531293,0.00021915,2]
[329491620,1718392245895,-155.0,0.00021915,2]
[329491621,1718392245917,-156.12777516,0.00021915,2]
[329491622,1718392245943,-2485.09344287,0.00021915,2]
[329491623,1718392245961,-155.48983317,0.00021915,2]
[329491624,1718392245976,-156.30863243,0.00021915,2]
[329491625,1718392245988,-155.0,0.00021915,2]
[329491626,1718392246002,-460.96071792,0.00021915,5]
[329491627,1718392246032,-284.31777379,0.00021915,2]
[329491628,1718392246045,-1253.38004593,0.00021915,2]
[329491629,1718392246069,-155.0,0.00021915,2]
[329491630,1718392246107,-157.61652856,0.00021915,2]
[329491631,1718392246135,-158.03447952,0.00021915,2]
[329491632,1718392246146,-173.17853756,0.00021915,2]
[329491633,1718392246172,-3064.8950057,0.00021915,2]
[329491634,1718392246185,-2350.65016854,0.00021915,2]
[329491635,1718392246201,-366.66486851,0.00021915,2]
[329491636,1718392246231,-644.49911854,0.00021915,2]
[329491637,1718392246252,-150.72708369,0.00021916,2]
[329491638,1718392246264,-6670.73566981,0.00021916,2]
[329491639,1718392246284,-1000.0,0.00021916,2]
[329491640,1718392246332,-115606.83674939,0.00021916,2]
[329491641,1718392246354,-8511.62844569,0.00021916,2]
[329491649,1718392246956,-688.35,0.00021916,2]
[329491657,1718392247101,-2166.17058881,0.00021896,2]
[329491658,1718392247118,-158.26702422,0.00021896,2]
[329491659,1718392247151,-22017.19672835,0.00021916,2]
[329491660,1718392247182,-1351.18566769,0.00021916,2]
[329491662,1718392247474,-46588.61772964,0.00021916,2]
[329491691,1718392248294,-740.76734568,0.00021916,2]
[329491693,1718392248310,-2380.1793995,0.00021916,2]
[329491694,1718392248340,-167841.89778933,0.00021916,2]
[329491698,1718392248413,-193311.1759587,0.00021916,2]
[329491699,1718392248428,-120159.1028764,0.00021917,2]
[329491702,1718392248446,-500.0,0.00021917,2]
[329491704,1718392248457,-157.92307421,0.00021917,2]
[329491706,1718392248479,-500.0,0.00021917,2]
[329491707,1718392248505,-159.81262562,0.00021917,2]
[329491709,1718392248522,-166.37049657,0.00021917,2]
[329491711,1718392248549,-500.0,0.00021917,2]
[329491713,1718392248587,-502.34161962,0.00021917,2]
[329491715,1718392248604,-500.0,0.00021917,2]
[329491717,1718392248626,-500.0,0.00021917,2]
[329491719,1718392248645,-500.0,0.00021917,2]
[329491721,1718392248658,-314.8120142,0.00021917,2]
[329491723,1718392248671,-517.74247451,0.00021917,2]
[329491725,1718392248682,-500.0,0.00021917,2]
[329491726,1718392248693,-504.73335963,0.00021917,2]
[329491728,1718392248705,-500.0,0.00021917,2]
[329491730,1718392248716,-500.0,0.00021917,2]
[329491732,1718392248729,-500.0,0.00021917,2]
[329491734,1718392248747,-500.0,0.00021917,2]
[329491736,1718392248758,-500.0,0.00021917,2]
[329491738,1718392248782,-500.0,0.00021917,2]
[329491740,1718392248794,-500.0,0.00021917,2]
[329491742,1718392248807,-500.0,0.00021917,2]
[329491744,1718392248819,-500.0,0.00021917,2]
[329491746,1718392248834,-500.0,0.00021917,2]
[329491748,1718392248846,-500.0,0.00021917,2]
[329491750,1718392248864,-500.0,0.00021917,2]
[329491752,1718392248882,-528.55761688,0.00021917,2]
[329491754,1718392248898,-500.0,0.00021917,2]
[329491757,1718392248912,-500.0,0.00021917,2]
[329491760,1718392248923,-500.0,0.00021917,2]
[329491761,1718392248952,-500.0,0.00021917,2]
[329491764,1718392248966,-500.0,0.00021917,2]
[329491766,1718392248984,-500.0,0.00021917,2]
[329491768,1718392249016,-500.0,0.00021917,2]
[329491773,1718392249032,-500.0,0.00021917,2]
[329491775,1718392249051,-525.39,0.00021917,2]
[329491781,1718392249110,-500.0,0.00021917,2]
[329491783,1718392249124,-500.0,0.00021917,2]
[329491784,1718392249136,-40.27024523,0.00021917,2]
[329491787,1718392249162,-459.72975477,0.00021917,2]
[329491789,1718392249176,-427.23497274,0.00021917,2]
[329491791,1718392249198,-72.76502726,0.00021917,2]
[329491793,1718392249211,-500.0,0.00021917,2]
[329491796,1718392249233,-509.58140271,0.00021917,2]
[329491798,1718392249248,-500.0,0.00021917,2]
[329491800,1718392249260,-500.0,0.00021917,2]
[329491801,1718392249276,-500.0,0.00021917,2]
[329491803,1718392249307,-500.0,0.00021917,2]
[329491806,1718392249325,-500.0,0.00021917,2]
[329491807,1718392249354,-500.0,0.00021917,2]
[329491809,1718392249367,-500.0,0.00021917,2]
[329491811,1718392249378,-500.0,0.00021917,2]
[329491814,1718392249389,-500.0,0.00021917,2]
[329491815,1718392249401,-500.0,0.00021917,2]
[329491818,1718392249415,-500.0,0.00021917,2]
[329491819,1718392249441,-638.97580715,0.00021917,2]
[329491821,1718392249465,-500.0,0.00021917,2]
[329491823,1718392249478,-500.0,0.00021917,2]
[329491825,1718392249494,-500.0,0.00021917,2]
[329491826,1718392249505,-561.07,0.00021917,2]
[329491828,1718392249517,-398.61006994,0.00021917,2]
[329491830,1718392249527,-500.0,0.00021917,2]
[329491833,1718392249543,-500.0,0.00021917,2]
[329491835,1718392249568,-500.0,0.00021917,2]
[329491837,1718392249593,-500.0,0.00021917,2]
[329491839,1718392249619,-500.0,0.00021917,2]
[329491841,1718392249636,-500.0,0.00021917,2]
[329491842,1718392249654,-500.0,0.00021917,2]
[329491844,1718392249672,-500.0,0.00021917,2]
[329491846,1718392249694,-500.0,0.00021917,2]
[329491848,1718392249704,-500.0,0.00021917,2]
[329491850,1718392249715,-500.0,0.00021917,2]
[329491852,1718392249726,-500.0,0.00021917,2]
[329491855,1718392249773,-500.0,0.00021917,2]
[329491857,1718392249785,-500.0,0.00021917,2]
[329491859,1718392249803,-500.0,0.00021917,2]
[329491860,1718392249814,-500.0,0.00021917,2]
[329491863,1718392249825,-500.0,0.00021917,2]
[329491865,1718392249836,-500.0,0.00021917,2]
[329491867,1718392249876,-500.0,0.00021917,2]
[329491870,1718392249890,-507.18940564,0.00021917,2]
[329491872,1718392249905,-500.0,0.00021917,2]
[329491893,1718392250203,-500.0,0.00021917,2]
[329491896,1718392250222,-500.0,0.00021917,2]
[329491898,1718392250240,-500.0,0.00021917,2]
[329491899,1718392250251,-500.0,0.00021917,2]
[329491901,1718392250262,-500.0,0.00021917,2]
[329491903,1718392250278,-500.0,0.00021917,2]
[329491905,1718392250289,-500.0,0.00021917,2]
[329491907,1718392250299,-500.0,0.00021917,2]
[329491908,1718392250327,-500.0,0.00021917,2]
[329491910,1718392250360,-39.63486566,0.00021917,2]
[329491923,1718392250622,-171.36201487,0.00021917,2]
[329491925,1718392250634,-500.0,0.00021917,2]
[329491927,1718392250644,-442.68218594,0.00021917,2]
[329491929,1718392250660,-57.31781406,0.00021917,2]
[329491931,1718392250670,-221.70310758,0.00021917,2]
[329491933,1718392250687,-278.29689242,0.00021917,2]
[329491935,1718392250699,-575.2,0.00021917,2]
[329491937,1718392250718,-300.32415608,0.00021917,2]
[329491939,1718392250730,-500.0,0.00021917,2]
[329491940,1718392250744,-500.0,0.00021917,2]
[329491942,1718392250761,-500.0,0.00021917,2]
[329491945,1718392250773,-500.0,0.00021917,2]
[329491947,1718392250784,-500.0,0.00021917,2]
[329491949,1718392250797,-500.0,0.00021917,2]
[329491951,1718392250808,-500.0,0.00021917,2]
[329491953,1718392250821,-500.0,0.00021917,2]
[329491954,1718392250835,-500.0,0.00021917,2]
[329491958,1718392250883,-518.57634638,0.00021917,2]
[329491960,1718392250896,-500.0,0.00021917,2]
[329491962,1718392250928,-500.0,0.00021917,2]
[329491964,1718392250940,-500.0,0.00021917,2]
[329491966,1718392250954,-255.76430325,0.00021917,2]
[329491968,1718392250965,-205.30783596,0.00021917,2]
[329491971,1718392251016,-500.0,0.00021917,2]
[329491974,1718392251056,-386.82178024,0.00021917,2]
[329491976,1718392251107,-500.0,0.00021917,2]
[329491979,1718392251148,-510.07328372,0.00021917,2]
[329491981,1718392251176,-500.0,0.00021917,2]
[329491982,1718392251187,-500.0,0.00021917,2]